[Event "Titled Tuesday Blitz February 21 Late 2023"]
[White "Paspuel, Trosky"]
[Black "Klose, Eli"]
[WhiteFideId "3602150"]
[BlackFideId "16242955"]
[WhiteElo "1721"]
[BlackElo "1519"]
[Result "0-1"]
[Round "01"]
[TimeControl "180+2"]
[Date "2023.02.21"]
[WhiteClock "0:00:05"]
[BlackClock "0:00:12"]

1. c4 {[%clk 0:03:00]}  Nf6 {[%clk 0:02:58]} 2. Nc3 {[%clk 0:03:00]}  c5 {[%clk 0:02:57]} 3. g3 {[%clk 0:02:59]}  Nc6 {[%clk 0:02:57]} 4. Bg2 {[%clk 0:03:00]}  d6 {[%clk 0:02:58]} 5. a3 {[%clk 0:02:57]}  g6 {[%clk 0:02:58]} 6. Rb1 {[%clk 0:02:57]}  Bg7 {[%clk 0:02:46]} 7. b4 {[%clk 0:02:57]}  O-O {[%clk 0:02:46]} 8. Nf3 {[%clk 0:02:55]}  Rb8 {[%clk 0:02:43]} 9. O-O {[%clk 0:02:53]}  b6 {[%clk 0:02:43]} 10. e3 {[%clk 0:02:39]}  Bb7 {[%clk 0:02:30]} 11. d3 {[%clk 0:02:33]}  cxb4 {[%clk 0:02:20]} 12. axb4 {[%clk 0:02:32]}  d5 {[%clk 0:02:20]} 13. cxd5 {[%clk 0:02:19]}  Nxd5 {[%clk 0:02:19]} 14. Nxd5 {[%clk 0:02:19]}  Qxd5 {[%clk 0:02:14]} 15. Nd4 {[%clk 0:01:59]}  Qd7 {[%clk 0:02:05]} 16. Nxc6 {[%clk 0:01:57]}  Bxc6 {[%clk 0:02:06]} 17. Bxc6 {[%clk 0:01:58]}  Qxc6 {[%clk 0:02:06]} 18. Bb2 {[%clk 0:01:53]}  e5 {[%clk 0:02:00]} 19. Qb3 {[%clk 0:01:36]}  Rfd8 {[%clk 0:01:58]} 20. Rfd1 {[%clk 0:01:36]}  Qb5 {[%clk 0:01:56]} 21. Qc4 {[%clk 0:01:22]}  Qd5 {[%clk 0:01:46]} 22. e4 {[%clk 0:01:16]}  Qd7 {[%clk 0:01:34]} 23. b5 {[%clk 0:01:06]}  Rbc8 {[%clk 0:01:33]} 24. Qb3 {[%clk 0:01:02]}  Rc7 {[%clk 0:01:21]} 25. Kg2 {[%clk 0:00:58]}  h5 {[%clk 0:01:17]} 26. h4 {[%clk 0:00:54]}  Qc8 {[%clk 0:01:09]} 27. Rbc1 {[%clk 0:00:46]}  Rxc1 {[%clk 0:00:58]} 28. Rxc1 {[%clk 0:00:47]}  Qd7 {[%clk 0:00:59]} 29. Rc3 {[%clk 0:00:25]}  Bf8 {[%clk 0:00:55]} 30. Rc6 {[%clk 0:00:20]}  Bd6 {[%clk 0:00:39]} 31. Qd5 {[%clk 0:00:19]}  Qe7 {[%clk 0:00:29]} 32. Qc4 {[%clk 0:00:14]}  Kg7 {[%clk 0:00:26]} 33. Kh2 {[%clk 0:00:11]}  Bc5 {[%clk 0:00:21]} 34. Kg2 {[%clk 0:00:07]}  Rd6 {[%clk 0:00:19]} 35. f4 {[%clk 0:00:07]}  Rxc6 {[%clk 0:00:15]} 36. bxc6 {[%clk 0:00:07]}  f6 {[%clk 0:00:16]} 37. fxe5 {[%clk 0:00:07]}  fxe5 {[%clk 0:00:17]} 38. Qd5 {[%clk 0:00:08]}  Kf6 {[%clk 0:00:16]} 39. Kf3 {[%clk 0:00:07]}  Qe6 {[%clk 0:00:13]} 40. c7 {[%clk 0:00:05]}  Qg4+ {[%clk 0:00:12]} 41. Kg2 {[%clk 0:00:05]}  Qe2+ {[%clk 0:00:13]} 42. Kh3 {[%clk 0:00:04]}  Qf1+ {[%clk 0:00:11]} 43. Kh2 {[%clk 0:00:05]}  Qg1+ {[%clk 0:00:12]} 44. Kh3 {[%clk 0:00:05]}  Qh1# {[%clk 0:00:12]} 0-1


[Site "https://www.chess.com"]

[Event "Titled Tuesday Blitz February 21 Late 2023"]
[White "Mustafayev, Farid"]
[Black "Roman, Rodrigo"]
[WhiteFideId "13408771"]
[BlackFideId "3701220"]
[WhiteElo "2316"]
[BlackElo "2058"]
[Result "1-0"]
[Round "01"]
[TimeControl "180+2"]
[Date "2023.02.21"]
[WhiteClock "0:01:42"]
[BlackClock "0:01:28"]

1. Nf3 {[%clk 0:02:59]}  d5 {[%clk 0:02:57]} 2. g3 {[%clk 0:02:56]}  Nf6 {[%clk 0:02:57]} 3. Bg2 {[%clk 0:02:56]}  c5 {[%clk 0:02:56]} 4. O-O {[%clk 0:02:57]}  Nc6 {[%clk 0:02:51]} 5. d4 {[%clk 0:02:57]}  cxd4 {[%clk 0:02:37]} 6. Nxd4 {[%clk 0:02:58]}  e5 {[%clk 0:02:37]} 7. Nxc6 {[%clk 0:02:58]}  bxc6 {[%clk 0:02:37]} 8. c4 {[%clk 0:02:59]}  Bc5 {[%clk 0:02:35]} 9. Nc3 {[%clk 0:02:59]}  Be6 {[%clk 0:02:29]} 10. Bg5 {[%clk 0:02:50]}  e4 {[%clk 0:02:25]} 11. cxd5 {[%clk 0:02:48]}  cxd5 {[%clk 0:02:24]} 12. Rc1 {[%clk 0:02:22]}  Kf8 {[%clk 0:02:09]} 13. Nxe4 {[%clk 0:02:07]}  dxe4 {[%clk 0:02:03]} 14. Rxc5 {[%clk 0:02:06]}  Qb6 {[%clk 0:02:02]} 15. Qc2 {[%clk 0:01:57]}  h6 {[%clk 0:01:58]} 16. Be3 {[%clk 0:01:55]}  Rb8 {[%clk 0:01:51]} 17. b3 {[%clk 0:01:49]}  Qb4 {[%clk 0:01:30]} 18. Rc7 {[%clk 0:01:42]}  a5 {[%clk 0:01:28]} 19. Bc5+ {[%clk 0:01:42]} 1-0


[Site "https://www.chess.com"]

[Event "Titled Tuesday Blitz February 21 Late 2023"]
[White "Guzman Moneo, Alberto"]
[Black "Kanakaris, Georgios"]
[WhiteFideId "2209616"]
[BlackFideId "4209460"]
[WhiteElo "2170"]
[BlackElo "2391"]
[Result "0-1"]
[Round "01"]
[TimeControl "180+2"]
[Date "2023.02.21"]
[WhiteClock "0:00:44"]
[BlackClock "0:00:36"]

1. e4 {[%clk 0:02:55]}  e6 {[%clk 0:03:00]} 2. d3 {[%clk 0:02:55]}  d5 {[%clk 0:03:00]} 3. Nd2 {[%clk 0:02:56]}  Nf6 {[%clk 0:03:00]} 4. Ngf3 {[%clk 0:02:56]}  c5 {[%clk 0:03:01]} 5. g3 {[%clk 0:02:55]}  Nc6 {[%clk 0:03:02]} 6. Bg2 {[%clk 0:02:55]}  Qc7 {[%clk 0:03:02]} 7. O-O {[%clk 0:02:55]}  Be7 {[%clk 0:03:03]} 8. Re1 {[%clk 0:02:55]}  b6 {[%clk 0:03:03]} 9. exd5 {[%clk 0:02:54]}  exd5 {[%clk 0:02:57]} 10. d4 {[%clk 0:02:54]}  O-O {[%clk 0:02:53]} 11. dxc5 {[%clk 0:02:51]}  bxc5 {[%clk 0:02:52]} 12. Nb3 {[%clk 0:02:49]}  Bg4 {[%clk 0:02:32]} 13. Bf4 {[%clk 0:02:46]}  Qb6 {[%clk 0:02:20]} 14. a4 {[%clk 0:02:31]}  a5 {[%clk 0:01:51]} 15. h3 {[%clk 0:02:30]}  Bh5 {[%clk 0:01:50]} 16. g4 {[%clk 0:02:27]}  Bg6 {[%clk 0:01:51]} 17. Ne5 {[%clk 0:02:23]}  Nxe5 {[%clk 0:01:48]} 18. Bxe5 {[%clk 0:02:23]}  Rfe8 {[%clk 0:01:24]} 19. h4 {[%clk 0:02:17]}  h6 {[%clk 0:01:15]} 20. f4 {[%clk 0:01:58]}  Be4 {[%clk 0:01:07]} 21. g5 {[%clk 0:01:54]}  hxg5 {[%clk 0:01:06]} 22. hxg5 {[%clk 0:01:53]}  Nh7 {[%clk 0:00:55]} 23. Rxe4 {[%clk 0:01:43]}  dxe4 {[%clk 0:00:55]} 24. Bxe4 {[%clk 0:01:43]}  Rad8 {[%clk 0:00:53]} 25. Qh5 {[%clk 0:01:37]}  g6 {[%clk 0:00:53]} 26. Qh3 {[%clk 0:01:19]}  Bd6 {[%clk 0:00:46]} 27. Bxd6 {[%clk 0:01:06]}  Rxd6 {[%clk 0:00:42]} 28. c4 {[%clk 0:00:45]}  Rxe4 {[%clk 0:00:39]} 29. Qc8+ {[%clk 0:00:45]}  Rd8 {[%clk 0:00:37]} 30. Qxc5 {[%clk 0:00:44]}  Qxb3 {[%clk 0:00:36]} 0-1


[Site "https://www.chess.com"]

[Event "Titled Tuesday Blitz February 21 Late 2023"]
[White "Skvortsov, Andrei"]
[Black "Polanco Nunez, Yoel Estarling"]
[WhiteFideId "24108600"]
[BlackFideId "6401783"]
[WhiteElo "2313"]
[BlackElo "2162"]
[Result "1-0"]
[Round "01"]
[TimeControl "180+2"]
[Date "2023.02.21"]
[WhiteClock "0:02:31"]
[BlackClock "0:01:37"]

1. e4 {[%clk 0:03:00]}  c5 {[%clk 0:02:59]} 2. Ne2 {[%clk 0:03:00]}  Nc6 {[%clk 0:02:59]} 3. Nbc3 {[%clk 0:02:59]}  g6 {[%clk 0:02:59]} 4. d4 {[%clk 0:02:59]}  cxd4 {[%clk 0:03:00]} 5. Nxd4 {[%clk 0:03:00]}  Bg7 {[%clk 0:03:00]} 6. Nde2 {[%clk 0:03:01]}  Nf6 {[%clk 0:02:59]} 7. g3 {[%clk 0:03:01]}  O-O {[%clk 0:02:59]} 8. Bg2 {[%clk 0:03:01]}  d6 {[%clk 0:02:59]} 9. O-O {[%clk 0:02:58]}  a6 {[%clk 0:02:56]} 10. h3 {[%clk 0:02:57]}  Bd7 {[%clk 0:02:52]} 11. Nd5 {[%clk 0:02:55]}  Rc8 {[%clk 0:02:49]} 12. a4 {[%clk 0:02:53]}  Nxd5 {[%clk 0:02:45]} 13. exd5 {[%clk 0:02:54]}  Ne5 {[%clk 0:02:45]} 14. Ra2 {[%clk 0:02:53]}  Qc7 {[%clk 0:02:09]} 15. b3 {[%clk 0:02:50]}  Be8 {[%clk 0:02:05]} 16. c4 {[%clk 0:02:46]}  b5 {[%clk 0:02:02]} 17. cxb5 {[%clk 0:02:44]}  axb5 {[%clk 0:02:02]} 18. a5 {[%clk 0:02:44]}  b4 {[%clk 0:01:55]} 19. Be3 {[%clk 0:02:40]}  Bb5 {[%clk 0:01:54]} 20. f4 {[%clk 0:02:39]}  Nd3 {[%clk 0:01:52]} 21. Bb6 {[%clk 0:02:39]}  Qb7 {[%clk 0:01:45]} 22. Nd4 {[%clk 0:02:38]}  Nc5 {[%clk 0:01:37]} 23. Nxb5 {[%clk 0:02:31]} 1-0


[Site "https://www.chess.com"]

[Event "Titled Tuesday Blitz February 21 Late 2023"]
[White "Buganca, Luiz Henrique Da Silva"]
[Black "Thomforde-Toates, Noah"]
[WhiteFideId "2182289"]
[BlackFideId "30951992"]
[WhiteElo "1920"]
[BlackElo "2124"]
[Result "1-0"]
[Round "01"]
[TimeControl "180+2"]
[Date "2023.02.21"]
[WhiteClock "0:00:28"]
[BlackClock "0:00:21"]

1. d4 {[%clk 0:02:59]}  Nf6 {[%clk 0:02:56]} 2. c4 {[%clk 0:03:00]}  g6 {[%clk 0:02:55]} 3. Nf3 {[%clk 0:02:59]}  Bg7 {[%clk 0:02:56]} 4. g3 {[%clk 0:02:59]}  O-O {[%clk 0:02:56]} 5. Bg2 {[%clk 0:03:00]}  d6 {[%clk 0:02:57]} 6. O-O {[%clk 0:03:00]}  Nc6 {[%clk 0:02:57]} 7. d5 {[%clk 0:02:59]}  Nb8 {[%clk 0:02:16]} 8. Nc3 {[%clk 0:02:54]}  c6 {[%clk 0:02:14]} 9. Nd4 {[%clk 0:02:26]}  c5 {[%clk 0:02:11]} 10. Nc2 {[%clk 0:02:22]}  Na6 {[%clk 0:02:10]} 11. Bg5 {[%clk 0:02:04]}  Nc7 {[%clk 0:01:53]} 12. e4 {[%clk 0:01:49]}  a6 {[%clk 0:01:42]} 13. Qe2 {[%clk 0:01:23]}  b5 {[%clk 0:01:41]} 14. cxb5 {[%clk 0:01:23]}  Nxb5 {[%clk 0:01:39]} 15. Nxb5 {[%clk 0:01:22]}  axb5 {[%clk 0:01:40]} 16. Rfe1 {[%clk 0:01:18]}  b4 {[%clk 0:01:39]} 17. Ne3 {[%clk 0:01:10]}  Ba6 {[%clk 0:01:35]} 18. Nc4 {[%clk 0:01:09]}  Nd7 {[%clk 0:01:34]} 19. Rab1 {[%clk 0:01:03]}  Ne5 {[%clk 0:01:22]} 20. b3 {[%clk 0:01:02]}  Bxc4 {[%clk 0:01:21]} 21. bxc4 {[%clk 0:01:02]}  Ra3 {[%clk 0:01:21]} 22. Rb3 {[%clk 0:00:52]}  h6 {[%clk 0:01:06]} 23. Rxa3 {[%clk 0:00:48]}  bxa3 {[%clk 0:01:06]} 24. Bc1 {[%clk 0:00:48]}  Qa5 {[%clk 0:01:04]} 25. Bd2 {[%clk 0:00:46]}  Qa4 {[%clk 0:01:04]} 26. Bf1 {[%clk 0:00:45]}  Rb8 {[%clk 0:01:03]} 27. Bc3 {[%clk 0:00:43]}  Nd7 {[%clk 0:00:43]} 28. Bxg7 {[%clk 0:00:42]}  Kxg7 {[%clk 0:00:44]} 29. Qd3 {[%clk 0:00:37]}  Ne5 {[%clk 0:00:42]} 30. Qc3 {[%clk 0:00:37]}  Qb4 {[%clk 0:00:39]} 31. Re3 {[%clk 0:00:33]}  Kh7 {[%clk 0:00:26]} 32. h3 {[%clk 0:00:27]}  Qb1 {[%clk 0:00:22]} 33. f4 {[%clk 0:00:22]}  Nd7 {[%clk 0:00:21]} 34. Qxa3 {[%clk 0:00:22]}  Qa1 {[%clk 0:00:17]} 35. Qc3 {[%clk 0:00:18]}  Qxa2 {[%clk 0:00:17]} 36. e5 {[%clk 0:00:18]}  Rb1 {[%clk 0:00:14]} 37. exd6 {[%clk 0:00:17]}  Qa4 {[%clk 0:00:07]} 38. dxe7 {[%clk 0:00:16]}  Qd1 {[%clk 0:00:07]} 39. Qd3 {[%clk 0:00:15]}  Qxd3 {[%clk 0:00:05]} 40. Rxd3 {[%clk 0:00:16]}  Nf6 {[%clk 0:00:06]} 41. d6 {[%clk 0:00:16]}  Rb8 {[%clk 0:00:05]} 42. d7 {[%clk 0:00:17]}  Nxd7 {[%clk 0:00:05]} 43. Rxd7 {[%clk 0:00:18]}  Re8 {[%clk 0:00:06]} 44. Bg2 {[%clk 0:00:18]}  Kg7 {[%clk 0:00:06]} 45. Bc6 {[%clk 0:00:18]}  Kf6 {[%clk 0:00:07]} 46. Rd6+ {[%clk 0:00:18]}  Kxe7 {[%clk 0:00:07]} 47. Bxe8 {[%clk 0:00:19]}  Kxd6 {[%clk 0:00:08]} 48. Bxf7 {[%clk 0:00:20]}  g5 {[%clk 0:00:09]} 49. fxg5 {[%clk 0:00:20]}  hxg5 {[%clk 0:00:10]} 50. h4 {[%clk 0:00:20]}  Ke5 {[%clk 0:00:10]} 51. hxg5 {[%clk 0:00:21]}  Kf5 {[%clk 0:00:11]} 52. g6 {[%clk 0:00:21]}  Kf6 {[%clk 0:00:12]} 53. Bd5 {[%clk 0:00:21]}  Kg7 {[%clk 0:00:13]} 54. Kf2 {[%clk 0:00:22]}  Kxg6 {[%clk 0:00:14]} 55. Kf3 {[%clk 0:00:23]}  Kg5 {[%clk 0:00:15]} 56. g4 {[%clk 0:00:24]}  Kg6 {[%clk 0:00:15]} 57. Kf4 {[%clk 0:00:24]}  Kf6 {[%clk 0:00:16]} 58. g5+ {[%clk 0:00:25]}  Kg6 {[%clk 0:00:17]} 59. Be4+ {[%clk 0:00:25]}  Kg7 {[%clk 0:00:18]} 60. Kf5 {[%clk 0:00:26]}  Kf7 {[%clk 0:00:18]} 61. Bd5+ {[%clk 0:00:27]}  Kg7 {[%clk 0:00:19]} 62. g6 {[%clk 0:00:28]}  Kh8 {[%clk 0:00:19]} 63. Bc6 {[%clk 0:00:25]}  Kg7 {[%clk 0:00:20]} 64. Kg5 {[%clk 0:00:26]}  Kh8 {[%clk 0:00:19]} 65. Kh6 {[%clk 0:00:26]}  Kg8 {[%clk 0:00:20]} 66. Bd5+ {[%clk 0:00:27]}  Kf8 {[%clk 0:00:19]} 67. g7+ {[%clk 0:00:27]}  Ke7 {[%clk 0:00:20]} 68. g8=Q {[%clk 0:00:28]}  Kf6 {[%clk 0:00:21]} 69. Qe6# {[%clk 0:00:28]} 1-0


[Site "https://www.chess.com"]

[Event "Titled Tuesday Blitz February 21 Late 2023"]
[White "Zhurbinsky, David"]
[Black "rikchessmx"]
[WhiteFideId "2072904"]
[WhiteElo "2045"]
[BlackElo "2290"]
[Result "1-0"]
[Round "01"]
[TimeControl "180+2"]
[Date "2023.02.21"]
[WhiteClock "0:00:30"]
[BlackClock "0:02:14"]

1. e4 {[%clk 0:03:00]}  e5 {[%clk 0:02:59]} 2. Nf3 {[%clk 0:02:58]}  Nc6 {[%clk 0:03:00]} 3. Bb5 {[%clk 0:02:57]}  a6 {[%clk 0:02:59]} 4. Ba4 {[%clk 0:02:57]}  Nf6 {[%clk 0:02:59]} 5. O-O {[%clk 0:02:57]}  Be7 {[%clk 0:02:59]} 6. Re1 {[%clk 0:02:57]}  b5 {[%clk 0:02:58]} 7. Bb3 {[%clk 0:02:57]}  O-O {[%clk 0:02:58]} 8. c3 {[%clk 0:02:56]}  d5 {[%clk 0:02:58]} 9. exd5 {[%clk 0:02:57]}  Nxd5 {[%clk 0:02:58]} 10. Nxe5 {[%clk 0:02:58]}  Nxe5 {[%clk 0:02:58]} 11. Rxe5 {[%clk 0:02:58]}  c6 {[%clk 0:02:58]} 12. d3 {[%clk 0:02:58]}  Bd6 {[%clk 0:02:59]} 13. Re1 {[%clk 0:02:58]}  Qh4 {[%clk 0:02:59]} 14. g3 {[%clk 0:02:54]}  Qh3 {[%clk 0:02:59]} 15. Re4 {[%clk 0:02:53]}  g5 {[%clk 0:02:58]} 16. Bxg5 {[%clk 0:02:11]}  Qf5 {[%clk 0:02:55]} 17. Bh6 {[%clk 0:02:03]}  Nf6 {[%clk 0:02:50]} 18. Bxf8 {[%clk 0:01:54]}  Kxf8 {[%clk 0:02:48]} 19. Rh4 {[%clk 0:01:42]}  Ng4 {[%clk 0:02:43]} 20. Qe2 {[%clk 0:01:29]}  Bd7 {[%clk 0:02:38]} 21. Nd2 {[%clk 0:01:27]}  Re8 {[%clk 0:02:37]} 22. Qf3 {[%clk 0:01:27]}  Qg6 {[%clk 0:02:32]} 23. h3 {[%clk 0:01:05]}  Ne5 {[%clk 0:02:31]} 24. Qh5 {[%clk 0:01:00]}  Qxd3 {[%clk 0:02:24]} 25. Ne4 {[%clk 0:00:30]}  Nf3+ {[%clk 0:02:14]} 26. Kh1 {[%clk 0:00:30]}  Nxh4 {[%clk 0:02:14]} 27. Qxf7# {[%clk 0:00:30]} 1-0


[Site "https://www.chess.com"]

[Event "Titled Tuesday Blitz February 21 Late 2023"]
[White "Ozates, Tuna"]
[Black "Romero Ruscalleda, Josep"]
[WhiteFideId "6354521"]
[BlackFideId "2231859"]
[WhiteElo "2251"]
[BlackElo "2160"]
[Result "0-1"]
[Round "01"]
[TimeControl "180+2"]
[Date "2023.02.21"]
[WhiteClock "0:00:04"]
[BlackClock "0:00:17"]

1. Nf3 {[%clk 0:03:00]}  g6 {[%clk 0:03:00]} 2. g3 {[%clk 0:03:00]}  Bg7 {[%clk 0:03:00]} 3. Bg2 {[%clk 0:03:01]}  e5 {[%clk 0:03:00]} 4. d3 {[%clk 0:03:00]}  d6 {[%clk 0:03:00]} 5. O-O {[%clk 0:03:00]}  f5 {[%clk 0:02:59]} 6. c4 {[%clk 0:03:00]}  Nf6 {[%clk 0:02:58]} 7. Nc3 {[%clk 0:03:01]}  Nc6 {[%clk 0:02:56]} 8. Rb1 {[%clk 0:03:01]}  a5 {[%clk 0:02:55]} 9. a3 {[%clk 0:03:01]}  O-O {[%clk 0:02:55]} 10. b4 {[%clk 0:03:01]}  axb4 {[%clk 0:02:55]} 11. axb4 {[%clk 0:03:02]}  h6 {[%clk 0:02:53]} 12. b5 {[%clk 0:03:02]}  Ne7 {[%clk 0:02:53]} 13. Bb2 {[%clk 0:02:53]}  g5 {[%clk 0:02:53]} 14. Nd2 {[%clk 0:02:53]}  f4 {[%clk 0:02:52]} 15. Nde4 {[%clk 0:02:54]}  Nf5 {[%clk 0:02:47]} 16. Nxf6+ {[%clk 0:02:50]}  Bxf6 {[%clk 0:02:45]} 17. Nd5 {[%clk 0:02:50]}  Bg7 {[%clk 0:02:44]} 18. Ba1 {[%clk 0:02:09]}  Be6 {[%clk 0:02:35]} 19. b6 {[%clk 0:02:07]}  cxb6 {[%clk 0:02:23]} 20. Nxb6 {[%clk 0:02:06]}  Rb8 {[%clk 0:02:21]} 21. Nd5 {[%clk 0:01:47]}  Kh7 {[%clk 0:02:03]} 22. Rb5 {[%clk 0:01:39]}  Bd7 {[%clk 0:01:59]} 23. Rb6 {[%clk 0:01:31]}  Bc6 {[%clk 0:01:59]} 24. Qb3 {[%clk 0:01:30]}  Nd4 {[%clk 0:01:55]} 25. Bxd4 {[%clk 0:01:30]}  exd4 {[%clk 0:01:55]} 26. Be4+ {[%clk 0:01:27]}  Kh8 {[%clk 0:01:54]} 27. Rb1 {[%clk 0:01:23]}  fxg3 {[%clk 0:01:47]} 28. hxg3 {[%clk 0:01:23]}  Be5 {[%clk 0:01:46]} 29. Kg2 {[%clk 0:01:16]}  Qe8 {[%clk 0:01:42]} 30. Rh1 {[%clk 0:01:15]}  Kg7 {[%clk 0:01:42]} 31. Nc7 {[%clk 0:00:57]}  Qf7 {[%clk 0:01:39]} 32. Ne6+ {[%clk 0:00:48]}  Qxe6 {[%clk 0:01:35]} 33. Bxc6 {[%clk 0:00:48]}  Bxg3 {[%clk 0:01:26]} 34. Kxg3 {[%clk 0:00:35]}  Qxe2 {[%clk 0:01:14]} 35. Rxb7+ {[%clk 0:00:28]}  Rxb7 {[%clk 0:01:10]} 36. Qxb7+ {[%clk 0:00:29]}  Rf7 {[%clk 0:01:10]} 37. Bf3 {[%clk 0:00:20]}  Qe5+ {[%clk 0:01:08]} 38. Kg2 {[%clk 0:00:20]}  Rxb7 {[%clk 0:01:08]} 39. Bxb7 {[%clk 0:00:21]}  g4 {[%clk 0:01:02]} 40. Be4 {[%clk 0:00:21]}  h5 {[%clk 0:01:01]} 41. Rb1 {[%clk 0:00:20]}  Kf6 {[%clk 0:01:01]} 42. Rb8 {[%clk 0:00:19]}  h4 {[%clk 0:00:59]} 43. Rh8 {[%clk 0:00:14]}  h3+ {[%clk 0:00:59]} 44. Kg1 {[%clk 0:00:14]}  Qg5 {[%clk 0:00:55]} 45. Rf8+ {[%clk 0:00:11]}  Ke7 {[%clk 0:00:55]} 46. Rf5 {[%clk 0:00:11]}  Qd2 {[%clk 0:00:51]} 47. Kh2 {[%clk 0:00:10]}  Qe1 {[%clk 0:00:50]} 48. Rf4 {[%clk 0:00:08]}  Qf1 {[%clk 0:00:42]} 49. Rf5 {[%clk 0:00:07]}  Qc1 {[%clk 0:00:36]} 50. Bd5 {[%clk 0:00:03]}  Qd2 {[%clk 0:00:34]} 51. Be4 {[%clk 0:00:04]}  Kd7 {[%clk 0:00:33]} 52. Rf6 {[%clk 0:00:03]}  Kc7 {[%clk 0:00:31]} 53. Rf5 {[%clk 0:00:04]}  Kb6 {[%clk 0:00:31]} 54. Rf6 {[%clk 0:00:04]}  Kc5 {[%clk 0:00:30]} 55. Rf5+ {[%clk 0:00:05]}  Kb4 {[%clk 0:00:31]} 56. Kg3 {[%clk 0:00:05]}  Qe1 {[%clk 0:00:29]} 57. Rh5 {[%clk 0:00:06]}  Qg1+ {[%clk 0:00:29]} 58. Kf4 {[%clk 0:00:06]}  Qxf2+ {[%clk 0:00:28]} 59. Kxg4 {[%clk 0:00:06]}  h2 {[%clk 0:00:27]} 60. Rh8 {[%clk 0:00:06]}  Qg1+ {[%clk 0:00:27]} 61. Kf5 {[%clk 0:00:07]}  Kc3 {[%clk 0:00:25]} 62. Ke6 {[%clk 0:00:05]}  Qg4+ {[%clk 0:00:19]} 63. Kd5 {[%clk 0:00:06]}  Qg5+ {[%clk 0:00:19]} 64. Kc6 {[%clk 0:00:06]}  d5 {[%clk 0:00:18]} 65. cxd5 {[%clk 0:00:01]}  Qf6+ {[%clk 0:00:18]} 66. d6 {[%clk 0:00:02]}  Qxh8 {[%clk 0:00:18]} 67. d7 {[%clk 0:00:03]}  h1=Q {[%clk 0:00:17]} 68. Bxh1 {[%clk 0:00:03]}  Qxh1+ {[%clk 0:00:17]} 69. Kc7 {[%clk 0:00:04]}  Qd5 {[%clk 0:00:17]} 0-1


[Site "https://www.chess.com"]

[Event "Titled Tuesday Blitz February 21 Late 2023"]
[White "Prieto Aranguren, Alain"]
[Black "Zarnicki, Pablo"]
[WhiteFideId "2268906"]
[BlackFideId "100137"]
[WhiteElo "2258"]
[BlackElo "2514"]
[Result "0-1"]
[Round "01"]
[TimeControl "180+2"]
[Date "2023.02.21"]
[WhiteClock "0:00:37"]
[BlackClock "0:00:07"]

1. e4 {[%clk 0:02:54]}  e5 {[%clk 0:02:44]} 2. Ne2 {[%clk 0:02:52]}  Nf6 {[%clk 0:02:40]} 3. Ng3 {[%clk 0:02:52]}  Nc6 {[%clk 0:02:40]} 4. Nc3 {[%clk 0:02:52]}  g6 {[%clk 0:02:33]} 5. Bb5 {[%clk 0:02:49]}  Bg7 {[%clk 0:02:33]} 6. Bxc6 {[%clk 0:02:48]}  bxc6 {[%clk 0:02:20]} 7. O-O {[%clk 0:02:48]}  O-O {[%clk 0:02:20]} 8. Re1 {[%clk 0:02:47]}  d6 {[%clk 0:01:54]} 9. d3 {[%clk 0:02:48]}  h6 {[%clk 0:01:48]} 10. Be3 {[%clk 0:02:47]}  d5 {[%clk 0:01:30]} 11. Bd2 {[%clk 0:02:46]}  Rb8 {[%clk 0:01:25]} 12. b3 {[%clk 0:02:44]}  Nh7 {[%clk 0:00:55]} 13. Qc1 {[%clk 0:02:43]}  f5 {[%clk 0:00:51]} 14. Bxh6 {[%clk 0:02:34]}  f4 {[%clk 0:00:38]} 15. Bxg7 {[%clk 0:02:34]}  Kxg7 {[%clk 0:00:38]} 16. Nf1 {[%clk 0:02:27]}  d4 {[%clk 0:00:31]} 17. Na4 {[%clk 0:02:24]}  Qh4 {[%clk 0:00:30]} 18. f3 {[%clk 0:02:22]}  g5 {[%clk 0:00:25]} 19. h3 {[%clk 0:02:15]}  Nf6 {[%clk 0:00:24]} 20. Nh2 {[%clk 0:02:09]}  Rh8 {[%clk 0:00:23]} 21. Re2 {[%clk 0:02:03]}  Bxh3 {[%clk 0:00:22]} 22. gxh3 {[%clk 0:02:03]}  Qxh3 {[%clk 0:00:23]} 23. Rg2 {[%clk 0:02:00]}  Kf7 {[%clk 0:00:23]} 24. c3 {[%clk 0:01:50]}  g4 {[%clk 0:00:19]} 25. cxd4 {[%clk 0:01:50]}  gxf3 {[%clk 0:00:16]} 26. Qc4+ {[%clk 0:01:49]}  Kf8 {[%clk 0:00:13]} 27. Nxf3 {[%clk 0:01:42]}  Qxf3 {[%clk 0:00:11]} 28. Qe6 {[%clk 0:01:32]}  Qe3+ {[%clk 0:00:09]} 29. Rf2 {[%clk 0:01:26]}  Rh6 {[%clk 0:00:09]} 30. dxe5 {[%clk 0:01:16]}  Rg6+ {[%clk 0:00:08]} 31. Kf1 {[%clk 0:01:13]}  Ng4 {[%clk 0:00:08]} 32. Qf5+ {[%clk 0:01:08]}  Kg7 {[%clk 0:00:09]} 33. Qxf4 {[%clk 0:01:05]}  Qxf2+ {[%clk 0:00:07]} 34. Qxf2 {[%clk 0:01:05]}  Nxf2 {[%clk 0:00:08]} 35. Kxf2 {[%clk 0:01:05]}  Rf8+ {[%clk 0:00:08]} 36. Ke3 {[%clk 0:01:05]}  Rg3+ {[%clk 0:00:08]} 37. Kd4 {[%clk 0:01:06]}  Rd8+ {[%clk 0:00:08]} 38. Kc4 {[%clk 0:01:02]}  Rgxd3 {[%clk 0:00:07]} 39. Rg1+ {[%clk 0:01:01]}  Kf7 {[%clk 0:00:07]} 40. Rf1+ {[%clk 0:01:00]}  Ke7 {[%clk 0:00:06]} 41. Kc5 {[%clk 0:00:53]}  Rd2 {[%clk 0:00:05]} 42. Kxc6 {[%clk 0:00:52]}  Rc2+ {[%clk 0:00:05]} 43. Kb7 {[%clk 0:00:52]}  c5 {[%clk 0:00:04]} 44. Kxa7 {[%clk 0:00:49]}  c4 {[%clk 0:00:04]} 45. bxc4 {[%clk 0:00:48]}  Rxa2 {[%clk 0:00:04]} 46. Kb6 {[%clk 0:00:44]}  Rxa4 {[%clk 0:00:04]} 47. c5 {[%clk 0:00:44]}  Raa8 {[%clk 0:00:04]} 48. c6 {[%clk 0:00:44]}  Rab8+ {[%clk 0:00:05]} 49. Kc5 {[%clk 0:00:43]}  Rbc8 {[%clk 0:00:05]} 50. Rh1 {[%clk 0:00:41]}  Rd2 {[%clk 0:00:05]} 51. Rh7+ {[%clk 0:00:41]}  Ke6 {[%clk 0:00:06]} 52. Rh6+ {[%clk 0:00:39]}  Kxe5 {[%clk 0:00:06]} 53. Rh5+ {[%clk 0:00:39]}  Kxe4 {[%clk 0:00:07]} 54. Rh7 {[%clk 0:00:37]}  Rc2+ {[%clk 0:00:07]} 55. Kb4 {[%clk 0:00:37]}  R2xc6 {[%clk 0:00:07]} 0-1


[Site "https://www.chess.com"]